bitfinex/quotes_ETHUSD_20241022
["timestamp","ask_amount","ask_price","bid_price","bid_amount"]
[1729639392836,1.66419045,2629.3,2629.1,3.42313]
[1729639394849,1.66419045,2629.2,2629.1,3.42313]
[1729639395049,1.66419045,2629.3,2629.1,3.42313]
[1729639395927,1.66419045,2629.3,2629.1,6.84626]
[1729639396173,1.66419045,2629.3,2629.2,3.42309]
[1729639397042,1.66419045,2629.3,2629.1,3.42313]
[1729639397871,1.66419045,2629.5,2629.1,4.189762]
[1729639398173,1.66419045,2629.4,2629.3,0.8127]
[1729639398938,6.84499,2629.7,2629.3,0.8127]
[1729639399139,1.66419045,2629.4,2629.1,4.23592]
[1729639399842,4.19082,2629.8,2629.1,4.23592]
[1729639400037,1.66419045,2629.5,2629.3,3.42292]
[1729639400381,0.7685,2629.8,2629.2,3.42301]
[1729639400382,1.66419045,2629.4,2629.2,3.42301]
[1729639402481,1.66419045,2629.3,2629.2,3.42301]
[1729639402782,1.66419045,2629.4,2629.2,6.84603]
[1729639402990,1.66419045,2629.4,2629.2,3.42301]
[1729639403358,1.66419045,2629.5,2629.2,3.42301]
[1729639403688,0.7685,2629.8,2629.4,3.42283]
[1729639403985,1.66419045,2629.7,2629.5,0.8127]
[1729639404282,1.66419045,2629.6,2629.5,0.8127]
[1729639405247,1.66419045,2629.7,2629.5,0.8127]
[1729639405447,1.66419045,2629.6,2629.5,0.8127]
[1729639405781,1.66419045,2629.6,2629.5,4.2354]
[1729639406002,1.66419045,2629.7,2629.5,4.2354]
[1729639406139,1.66419045,2629.6,2629.5,4.2354]
[1729639406770,1.66419045,2629.7,2629.6,3.42251]
[1729639409290,0.7685,2630.0,2629.6,3.42251]
[1729639409504,1.66419045,2629.7,2629.6,3.42251]
[1729639411187,1.66419045,2629.8,2629.6,3.42251]
[1729639411415,0.7685,2630.0,2629.6,3.42251]
[1729639411619,1.66419045,2629.8,2629.6,3.42251]
[1729639411919,1.66419045,2629.7,2629.6,3.42251]
[1729639412614,1.66419045,2629.7,2629.6,3.42257]
[1729639413425,0.7685,2630.0,2629.6,3.42257]
[1729639413595,1.66419045,2629.7,2629.6,3.42257]
[1729639414892,1.66419045,2630.2,2629.8,3.42222]
[1729639415127,1.66419045,2630.2,2630.1,3.42184]
[1729639415728,1.66419045,2630.2,2630.0,0.771]
[1729639415892,1.66419045,2630.1,2630.0,0.771]
[1729639416728,1.66419045,2630.4,2630.3,3.42159]
[1729639417364,1.66419045,2630.4,2630.1,6.84363]
[1729639417561,1.66419045,2630.4,2630.2,3.42176]
[1729639418778,1.66419045,2630.5,2630.3,3.42166]
[1729639419072,1.66419045,2630.7,2630.5,3.42139]
[1729639419240,1.66419045,2630.6,2630.5,3.42139]
[1729639419646,1.66419045,2630.6,2630.4,0.771]
[1729639419937,1.66419045,2630.6,2630.4,4.19251]
[1729639420335,1.66419045,2630.6,2630.5,3.4214]
[1729639420532,1.66419045,2630.6,2630.4,4.19252]
[1729639420848,1.66419045,2630.7,2630.6,3.42117]
[1729639421376,1.66419045,2630.7,2630.5,6.84273]
[1729639421530,1.66419045,2630.6,2630.5,3.42133]
[1729639421736,0.7822,2630.9,2630.6,3.42126]
[1729639422050,1.66419045,2630.7,2630.6,3.42126]
[1729639428438,3.7822,2631.1,2630.7,3.42106]
[1729639428644,1.66419045,2630.8,2630.7,3.42106]
[1729639430084,0.7822,2631.1,2630.8,3.42091]
[1729639430232,0.7822,2631.1,2630.4,0.771]
[1729639430233,1.66419045,2630.9,2630.4,0.771]
[1729639430435,1.66419045,2630.9,2630.7,3.42104]
[1729639430755,1.66419045,2630.8,2630.7,3.42104]
[1729639431153,1.66419045,2630.9,2630.7,6.84211]
[1729639431365,0.7822,2631.1,2630.7,6.84211]
[1729639431366,1.66419045,2630.8,2630.7,3.42104]
[1729639431640,1.66419045,2630.9,2630.7,3.42104]
[1729639431840,1.66419045,2630.8,2630.7,3.42104]
[1729639432065,1.66419045,2630.8,2630.7,4.1471952]
[1729639432305,0.7822,2631.1,2630.8,3.42099]
[1729639432306,1.66419045,2630.9,2630.8,3.42099]
[1729639432583,0.7822,2631.1,2630.8,3.42099]
[1729639432736,1.66419045,2630.9,2630.8,3.42099]
[1729639432933,0.7822,2631.1,2630.8,3.42099]
[1729639433138,1.66419045,2630.9,2630.7,3.42113]
[1729639433389,0.7822,2631.1,2630.4,0.771]
[1729639433390,4.20284,2631.1,2630.4,4.19243]
[1729639433555,1.66419045,2630.6,2630.5,3.42128]
[1729639434173,1.66419045,2630.7,2630.5,3.42128]
[1729639434751,1.66419045,2630.6,2630.5,3.42128]
[1729639434971,1.66419045,2630.7,2630.5,3.42128]
[1729639435890,1.66419045,2630.7,2630.4,4.19243]
[1729639436104,1.66419045,2630.7,2630.5,3.42129]
[1729639436386,1.66419045,2630.7,2630.6,3.42127]
[1729639438092,1.66419045,2630.8,2630.7,3.42106]
[1729639441900,1.66419045,2630.8,2630.6,3.42126]
[1729639442196,1.66419045,2630.7,2630.6,3.42126]
[1729639443358,0.7822,2631.1,2630.7,3.42106]
[1729639443593,1.66419045,2630.8,2630.7,3.42106]
[1729639443770,1.66419045,2630.8,2630.6,3.42119]
[1729639444103,1.66419045,2630.7,2630.6,3.42119]
[1729639446255,0.7822,2631.1,2630.6,3.42119]
[1729639446256,1.66419045,2630.8,2630.6,3.42119]
[1729639446462,1.66419045,2630.7,2630.6,3.42119]
[1729639447064,0.7822,2631.1,2630.7,3.42107]
[1729639447302,1.66419045,2630.8,2630.7,3.42107]
[1729639448174,1.66419045,2630.8,2630.4,0.771]
[1729639448175,1.66419045,2630.8,2630.5,3.42139]
[1729639448498,1.66419045,2630.6,2630.5,3.42139]
[1729639448711,1.66419045,2630.6,2630.2,3.42178]
[1729639449001,1.66419045,2630.3,2630.1,7.65979]
[1729639449302,0.7822,2630.5,2630.2,3.42179]
[1729639449501,0.7822,2630.5,2630.1,0.8161]
[1729639449701,0.7822,2630.5,2630.3,3.42161]
[1729639449905,1.66419045,2630.4,2630.3,3.42161]
[1729639450608,1.66419045,2630.4,2630.1,4.23789]
[1729639450791,1.66419045,2630.4,2630.1,0.8161]
[1729639450986,1.66419045,2630.4,2630.2,3.42176]
[1729639452006,1.66419045,2630.4,2630.2,6.84345]
[1729639452703,1.66419045,2630.4,2630.2,3.42169]
[1729639455302,0.7822,2630.5,2630.2,3.42169]
[1729639455303,1.66419045,2630.5,2630.3,3.42166]
[1729639455604,1.66419045,2630.4,2630.3,3.42166]
[1729639455811,1.66419045,2630.5,2630.3,3.42166]
[1729639456009,1.66419045,2630.4,2630.3,3.42166]
[1729639456521,0.7822,2630.7,2630.1,0.8161]
[1729639456667,2.44639045,2630.7,2630.5,3.42138]
[1729639457065,1.66419045,2630.6,2630.4,3.42153]
[1729639457264,1.66419045,2630.5,2630.3,3.42159]
[1729639457493,1.66419045,2630.4,2630.3,3.42159]
[1729639458010,1.66419045,2630.5,2630.3,3.42158]
[1729639458586,1.66419045,2630.5,2630.3,6.84317]
[1729639459190,1.66419045,2630.5,2630.3,3.42158]
[1729639460202,1.66419045,2630.5,2630.3,6.84317]
[1729639460677,1.66419045,2630.5,2630.3,3.42158]
[1729639461498,1.66419045,2630.5,2630.1,0.8161]
[1729639461692,1.66419045,2630.5,2630.3,3.4216]
[1729639462025,1.66419045,2630.5,2630.2,3.42179]
[1729639462226,1.66419045,2630.5,2630.3,3.42153]
[1729639462525,1.66419045,2630.5,2630.4,3.42153]
[1729639462829,0.7822,2631.1,2630.4,4.19893]
[1729639462988,1.66419045,2630.9,2630.5,6.84262]
[1729639463184,1.66419045,2630.9,2630.5,3.4213]
[1729639463388,1.66419045,2630.9,2630.6,3.42125]
[1729639463811,1.66419045,2630.8,2630.6,3.42125]
[1729639464324,1.66419045,2630.7,2630.6,3.42125]
[1729639464701,1.66419045,2630.8,2630.6,3.42125]
[1729639465404,1.66419045,2630.7,2630.6,3.42125]
[1729639466292,1.66419045,2630.7,2630.5,3.42138]
[1729639467929,1.66419045,2630.8,2630.5,3.42138]
[1729639468089,1.66419045,2630.7,2630.5,3.42138]
[1729639471005,1.66419045,2630.7,2630.4,4.19892]
[1729639471906,1.66419045,2630.7,2630.5,3.42138]
[1729639473338,1.66419045,2630.8,2630.5,3.42138]
[1729639473635,1.66419045,2630.7,2630.5,3.42138]
[1729639473836,1.66419045,2630.7,2630.4,4.19892]
[1729639475342,1.66419045,2630.7,2630.5,3.42138]
[1729639476146,1.66419045,2630.8,2630.5,3.42138]
[1729639476643,1.66419045,2630.8,2630.4,0.7774]
[1729639476802,1.66419045,2630.8,2630.4,4.19892]
[1729639477010,1.66419045,2630.7,2630.4,4.19892]
[1729639478899,3.42078,2631.0,2630.5,3.42132]
[1729639479137,1.66419045,2630.9,2630.5,3.42132]
[1729639479509,1.66419045,2630.9,2630.5,6.84265]
[1729639480245,1.66419045,2630.9,2630.6,3.42116]
[1729639480402,1.66419045,2630.8,2630.6,3.42116]
[1729639480599,1.66419045,2630.9,2630.5,3.42132]
[1729639480828,1.66419045,2630.9,2630.5,7.3387168]
[1729639481238,1.66419045,2630.9,2630.5,3.9173968]
[1729639481838,1.66419045,2630.9,2630.6,3.42125]
[1729639482243,1.66419045,2630.8,2630.6,3.42125]
[1729639482456,1.66419045,2630.8,2630.5,3.9173968]
[1729639482658,1.66419045,2630.7,2630.5,3.42132]
[1729639482844,3.42089,2630.9,2630.4,0.7774]
[1729639482845,1.66419045,2630.6,2630.4,0.7774]
[1729639483247,1.66419045,2630.7,2630.4,0.7774]
[1729639483447,1.66419045,2630.6,2630.4,0.7774]
[1729639483647,1.66419045,2630.7,2630.4,0.7774]
[1729639483826,1.66419045,2630.6,2630.4,0.7774]
[1729639484436,1.66419045,2630.7,2630.4,0.7774]
[1729639485621,1.66419045,2630.7,2630.4,4.19891]
[1729639486760,1.66419045,2630.7,2630.2,4.18978]
[1729639486761,5.86753045,2630.7,2630.2,4.18978]
[1729639487262,2.44639045,2630.7,2630.3,3.4216]
[1729639487837,1.66419045,2630.8,2630.3,0.76874102]
[1729639488057,5.08515045,2630.9,2630.4,3.49747019]
[1729639488362,5.08515045,2630.9,2630.4,0.07603019]
[1729639488527,5.08515045,2630.9,2630.5,3.42138]
[1729639488859,1.66419045,2630.8,2630.5,3.42138]
[1729639490270,5.08515045,2630.9,2630.5,3.42138]
[1729639490633,5.08515045,2630.9,2630.3,3.42166]
[1729639490949,5.08515045,2630.9,2630.4,3.42151]
[1729639493664,5.08515045,2630.9,2630.3,3.42166]
[1729639493967,5.08515045,2630.9,2630.5,3.4214]
[1729639500376,1.66419045,2630.9,2630.6,3.42118]
[1729639502273,1.66419045,2630.8,2630.6,3.42118]
[1729639502475,1.66419045,2630.9,2630.5,3.42138]
[1729639502839,1.66419045,2630.9,2630.6,3.42114]
[1729639504333,1.66419045,2630.9,2630.3,0.07602656]
[1729639504652,1.66419045,2630.9,2630.5,3.42134]
[1729639504988,1.66419045,2630.7,2630.4,6.84298]
[1729639505540,1.66419045,2630.7,2630.4,3.42145]
[1729639505981,0.751,2630.6,2630.4,3.42145]
[1729639506191,0.751,2630.3,2629.9,3.42205]
[1729639506351,1.66419045,2630.0,2629.7,4.18634]
[1729639506556,1.66419045,2630.1,2629.8,3.4223]
[1729639506742,1.66419045,2630.2,2629.8,3.4223]
[1729639507562,1.66419045,2630.2,2629.7,4.80320914]
[1729639507769,5.83685045,2630.3,2629.7,8.22551914]
[1729639507956,1.66419045,2630.2,2629.7,4.80317914]
[1729639508257,1.66419045,2630.2,2629.8,3.42228]
[1729639509462,1.66419045,2630.2,2629.9,3.42218]
[1729639509672,0.751,2630.3,2629.9,3.42218]
[1729639509673,2.41519045,2630.3,2629.9,3.42218]
[1729639510668,2.41519045,2630.3,2629.8,6.84452]
[1729639510870,0.751,2630.3,2629.9,3.42208]
[1729639511405,3.4208,2631.0,2630.1,3.42185]
[1729639511406,5.08548045,2630.6,2630.1,3.42185]
[1729639511714,1.66419045,2630.5,2630.0,7.6839479]
[1729639511910,1.66419045,2630.5,2630.0,8.54272383]
[1729639512202,1.66419045,2630.4,2630.0,8.54272383]
[1729639513463,1.66419045,2630.4,2630.1,3.4219]
[1729639513863,1.66419045,2630.5,2630.1,3.4219]
[1729639516078,5.08559045,2630.5,2630.1,3.4219]
[1729639516408,1.66419045,2630.4,2630.1,3.4219]
[1729639517660,1.66419045,2630.4,2630.0,5.12085383]
[1729639517964,1.66419045,2630.3,2630.0,4.18604]
[1729639518472,1.66419045,2630.3,2630.0,0.764]
[1729639518688,5.86793045,2630.4,2630.0,0.764]
[1729639519027,2.44639045,2630.4,2630.0,4.18603]
[1729639520330,0.01,2629.5,2629.4,0.79294055]
[1729639520532,0.01,2628.8,2627.5,3.66553713]
[1729639520740,1.66419045,2628.7,2627.8,3.42489]
[1729639520885,1.66419045,2628.7,2627.9,0.46207367]
[1729639521094,3.42375,2628.7,2628.1,0.8055]
[1729639521633,5.08794045,2628.7,2628.1,0.8055]
[1729639522137,3.4239,2628.6,2628.1,0.8055]
[1729639522981,3.42401,2628.5,2628.1,0.8055]
[1729639523186,3.42375,2628.7,2628.1,0.8055]
[1729639523430,3.42389,2628.6,2628.1,0.8055]
[1729639525002,3.42375,2628.7,2628.1,0.8055]
[1729639525003,3.42401,2628.5,2628.1,0.8055]
[1729639528326,6.8481,2628.5,2628.1,0.8055]
[1729639530625,3.42414,2628.4,2628.1,0.8055]
[1729639531130,3.42401,2628.5,2628.1,0.8055]
[1729639531554,0.06475597,2628.4,2628.1,0.8055]
[1729639531916,3.79364567,2628.4,2627.9,1.0577049]
[1729639532127,0.06475597,2628.4,2627.4,0.8055]
[1729639532320,3.42513,2627.7,2627.4,0.8055]
[1729639532620,3.78874404,2627.6,2627.4,0.8055]
[1729639532852,3.4253,2627.5,2627.0,0.821]
[1729639533025,3.42559,2627.3,2627.0,0.821]
[1729639533227,7.1544797,2627.3,2627.0,0.821]
[1729639533432,0.05973181,2627.2,2627.0,0.821]
[1729639533861,3.4257,2627.2,2627.0,0.821]
[1729639534161,0.05941908,2627.1,2626.9,0.1271586]
[1729639534973,0.05941152,2627.0,2626.9,0.1271586]
[1729639535426,7.1544797,2627.3,2626.9,0.1271586]
[1729639535946,0.05942665,2627.2,2626.9,0.1271586]
[1729639536466,7.1544797,2627.3,2626.9,0.1271586]
[1729639536619,0.05941908,2627.1,2626.9,0.1271586]
[1729639536820,7.1544797,2627.3,2626.9,0.1271586]
[1729639537017,0.05941152,2627.0,2626.9,0.1271586]
[1729639537230,7.1544797,2627.3,2626.9,0.1271586]
[1729639537448,0.05941152,2627.0,2626.9,0.1271586]
[1729639537690,0.05941549,2627.0,2626.9,0.1271586]
[1729639537911,7.1544797,2627.3,2626.9,0.1271586]
[1729639538111,3.42538,2627.5,2626.9,0.1271586]
[1729639538312,0.05943063,2627.2,2627.0,0.07612781]
[1729639538486,3.42506,2627.7,2627.1,0.821]
[1729639538888,0.0588321,2627.6,2627.1,0.821]
[1729639541434,0.0588321,2627.6,2627.5,3.4253]
[1729639541618,0.0588321,2627.6,2627.5,4.2463]
[1729639541821,3.7288897,2628.1,2627.5,4.2463]
[1729639541995,0.05092304,2627.6,2627.5,4.2463]
[1729639542191,3.7288897,2628.1,2627.5,0.821]
[1729639542838,0.05095308,2628.0,2627.5,0.821]
[1729639543892,0.05095308,2628.0,2627.5,4.24627]
[1729639545366,0.05095308,2628.0,2627.5,0.821]
[1729639547562,3.42518,2627.6,2626.7,3.784]
[1729639547775,3.42518,2627.6,2627.0,0.07612297]
[1729639548074,0.05111199,2627.5,2626.8,3.42612]
[1729639548927,7.1545897,2627.2,2626.7,0.784]
[1729639549141,0.05108172,2627.1,2626.7,0.784]
[1729639549376,0.05108172,2627.1,2626.7,4.21022]
[1729639549771,3.42521,2627.6,2626.8,3.42614]
[1729639550072,0.05095122,2627.0,2626.9,3.5532486]
[1729639550302,3.42521,2627.6,2626.9,3.5532486]
[1729639550303,3.42521,2627.6,2626.9,3.98697846]
[1729639550772,0.05098905,2627.5,2626.9,3.98697846]
[1729639551358,0.05098905,2627.5,2626.9,0.56088846]
[1729639551583,0.05098905,2627.5,2627.0,4.20994]
[1729639551747,6.42511,2627.7,2627.1,0.47708285]
[1729639551936,0.05080475,2627.6,2627.1,0.47708285]
[1729639552378,3.47600475,2627.6,2627.1,0.47708285]
[1729639554361,3.47600475,2627.6,2627.0,0.784]
[1729639555033,6.90129475,2627.6,2627.0,0.784]
[1729639555382,3.47600475,2627.6,2627.0,4.20994]
[1729639555767,3.47600475,2627.6,2627.0,0.784]
[1729639556278,3.47600475,2627.6,2627.0,5.02964085]
[1729639558011,7.1542297,2627.5,2627.0,0.784]
[1729639558301,3.42532,2627.5,2627.0,0.784]
[1729639558591,0.05078167,2627.4,2627.0,0.784]
[1729639559366,3.42532,2627.5,2627.0,0.784]
[1729639559706,0.05077609,2627.3,2627.0,0.784]
[1729639559855,0.05078366,2627.4,2627.0,0.784]
[1729639560049,0.05076852,2627.2,2627.0,0.784]
[1729639560257,6.85045,2627.6,2627.0,0.784]
[1729639560451,0.05076095,2627.1,2627.0,0.784]
[1729639560970,3.42539,2627.5,2627.0,0.784]
[1729639561176,0.05076095,2627.1,2627.0,0.784]
[1729639561368,3.42539,2627.5,2627.0,0.784]
[1729639561590,0.05076095,2627.1,2627.0,0.784]
[1729639561792,3.42539,2627.5,2627.0,0.784]
[1729639562004,0.05073636,2627.1,2627.0,0.784]
[1729639562220,3.42539,2627.5,2627.0,0.784]
[1729639562514,0.05073636,2627.1,2627.0,0.784]
[1729639562722,3.42539,2627.5,2627.0,0.784]
[1729639563019,3.4252,2627.6,2627.0,0.784]
[1729639563314,0.05075708,2627.4,2627.0,4.64367986]
[1729639563488,3.4252,2627.6,2627.0,4.64367986]
[1729639563489,0.05076464,2627.5,2627.0,4.64367986]
[1729639563690,0.05074951,2627.3,2627.0,4.64367986]
[1729639564026,0.05074194,2627.2,2627.0,4.64367986]
[1729639564534,0.05073437,2627.1,2627.0,4.64367986]
[1729639564703,3.4252,2627.6,2627.0,4.64367986]
[1729639564907,0.05076954,2627.5,2627.0,4.64367986]
[1729639566695,0.05076954,2627.5,2627.1,0.07612103]
[1729639567419,0.05076954,2627.5,2627.3,3.42553]
[1729639567617,0.05076954,2627.5,2627.3,0.07611387]
[1729639567827,3.42492,2627.8,2627.3,0.07611387]
[1729639568299,0.05082897,2627.7,2627.3,0.07611387]
[1729639568498,3.42492,2627.8,2627.3,0.07611387]
[1729639568701,0.05082897,2627.7,2627.2,4.25599]
[1729639568938,0.05082897,2627.7,2627.2,8.91452755]
[1729639569100,0.05082897,2627.7,2627.2,5.48890755]
[1729639570796,0.05082897,2627.7,2627.4,3.7288897]
[1729639571063,0.05082897,2627.7,2627.6,0.8304]
[1729639571211,3.42375,2628.7,2627.6,0.8304]
[1729639571212,3.42479,2627.9,2627.6,0.8304]
[1729639571417,3.4246,2628.1,2627.6,0.8304]
[1729639571623,0.05090048,2627.8,2627.6,0.8304]
[1729639571826,3.4246,2628.1,2627.6,1.255983]
[1729639572144,3.4246,2628.1,2627.6,0.8304]
[1729639572328,3.47560561,2628.0,2627.6,0.8304]
[1729639572538,0.05091561,2628.0,2627.6,0.8304]
[1729639574813,3.47557561,2628.0,2627.6,0.8304]
[1729639577937,0.05091561,2628.0,2627.6,0.8304]
[1729639582355,3.47556561,2628.0,2627.6,0.8304]
[1729639584181,0.05091561,2628.0,2627.6,0.8304]
[1729639590427,1.66961342,2627.9,2627.6,0.8304]
[1729639590919,0.04982379,2627.8,2627.6,0.8304]
[1729639592200,1.71943721,2627.8,2627.6,0.8304]
[1729639592585,0.04982379,2627.8,2627.6,0.8304]
[1729639594945,1.71943721,2627.8,2627.6,0.8304]
[1729639600081,0.04982379,2627.8,2627.6,0.8304]
[1729639600473,5.09426342,2628.0,2627.6,0.8304]
[1729639600979,0.04984121,2627.9,2627.6,0.8304]
[1729639606041,0.04984121,2627.9,2627.6,4.25557]
[1729639606645,5.09413342,2628.1,2627.6,4.25557]
[1729639606646,1.66961342,2628.0,2627.6,4.25557]
[1729639606847,0.04814924,2627.8,2627.7,4.23684]
[1729639607094,1.66961342,2628.3,2627.9,3.42476]
[1729639607479,3.42424,2628.4,2627.9,3.42472]
[1729639607480,1.66961342,2628.2,2627.9,3.42472]
[1729639608006,1.66961342,2628.2,2628.0,3.4246]
[1729639608287,1.66961342,2628.2,2627.9,3.42472]
[1729639608488,1.66961342,2628.2,2627.9,3.42471]
[1729639609955,1.66961342,2628.2,2627.9,6.84942]
[1729639610299,1.66961342,2628.2,2627.9,3.42471]
[1729639611494,1.66961342,2628.3,2627.9,3.42471]
[1729639611992,1.66961342,2628.2,2627.9,3.42471]
[1729639612177,1.66961342,2628.2,2627.9,4.190856]
[1729639612354,1.66961342,2628.3,2627.9,4.190856]
[1729639613495,5.09389342,2628.3,2627.9,4.190856]
[1729639614993,0.04509617,2628.2,2627.9,4.190856]
[1729639615404,1.66961342,2628.2,2627.9,4.190856]
[1729639615547,0.04508861,2628.1,2627.9,4.190856]
[1729639615750,5.09388342,2628.3,2627.9,4.190856]
[1729639616053,0.04509617,2628.2,2627.9,4.190856]
[1729639616500,5.09388342,2628.3,2627.9,0.766146]
[1729639616663,0.04508861,2628.1,2627.8,4.2367]
[1729639616998,0.04508104,2628.0,2627.8,4.2367]
[1729639617494,5.09388342,2628.3,2627.8,4.2367]
[1729639617671,0.04507348,2627.9,2627.8,4.2367]
[1729639617853,1.66961342,2628.2,2627.8,4.2367]
[1729639618087,0.04507348,2627.9,2627.8,4.2367]
[1729639618396,0.04507348,2627.9,2627.8,5.24896909]
[1729639618691,1.66961342,2628.2,2627.8,5.24896909]
[1729639619158,0.04508861,2628.1,2627.8,5.24896909]
[1729639619679,5.09388342,2628.3,2627.8,5.24896909]
[1729639619879,0.04508104,2628.0,2627.8,5.24896909]
[1729639620080,5.09388342,2628.3,2627.9,4.45912025]
[1729639620277,5.09388342,2628.3,2627.9,3.42477]
[1729639620955,5.09388342,2628.3,2627.8,0.8118]
[1729639621290,5.09388342,2628.3,2627.8,4.23664]
[1729639622150,8.51827342,2628.3,2627.8,4.23664]
[1729639622551,3.42442,2628.2,2627.8,4.23664]
[1729639622775,5.09388342,2628.3,2627.8,4.23664]
[1729639623390,8.51821342,2628.3,2627.8,4.23664]
[1729639623899,3.42439,2628.2,2627.8,4.23664]
[1729639624718,5.09387342,2628.3,2627.8,7.66148]
[1729639624920,5.09387342,2628.3,2627.8,4.23664]
[1729639625219,5.09387342,2628.3,2627.8,7.66146]
[1729639625421,5.09387342,2628.3,2627.8,4.23662]
[1729639625727,3.42426,2628.3,2627.8,4.23662]
[1729639625900,5.09387342,2628.3,2627.8,4.23662]
[1729639628920,5.09387342,2628.3,2627.8,7.66146]
[1729639629436,5.09387342,2628.3,2627.8,4.23662]
[1729639630020,0.04371339,2628.2,2627.8,4.23662]
[1729639630237,0.04371339,2628.2,2627.8,4.90638909]
[1729639630386,5.09387342,2628.3,2627.8,4.90638909]
[1729639630725,0.04371339,2628.2,2627.8,4.90638909]
[1729639631019,5.09387342,2628.3,2627.8,4.90638909]
[1729639631224,0.04370583,2628.1,2627.8,4.90638909]
[1729639631525,0.04371339,2628.2,2627.8,4.90638909]
[1729639631827,5.09387342,2628.3,2627.8,8.33120909]
[1729639632033,0.04370583,2628.1,2627.8,4.90638909]
[1729639632235,0.04371339,2628.2,2627.8,4.90638909]
[1729639632398,0.04369827,2628.0,2627.8,4.23662]
[1729639632725,5.09387342,2628.3,2627.8,4.23662]
[1729639632726,8.51823342,2628.3,2627.8,4.23662]
[1729639632926,0.0436907,2627.9,2627.8,4.23662]
[1729639633425,5.09387342,2628.3,2627.8,4.23662]
[1729639633584,0.0436907,2627.9,2627.8,4.23662]
[1729639633784,5.09387342,2628.3,2627.8,5.16974634]
[1729639634020,0.04371339,2628.2,2627.8,4.23662]
[1729639634384,3.42426,2628.3,2627.8,4.23662]
[1729639634690,0.04371339,2628.2,2627.8,4.23662]
[1729639635084,6.84861,2628.3,2627.8,4.23662]
[1729639635322,0.04370583,2628.1,2627.8,4.23662]
[1729639635528,0.04371339,2628.2,2627.8,5.24889209]
[1729639635823,3.42426,2628.3,2627.8,5.24889209]
[1729639636123,0.04370583,2628.1,2627.8,5.24889209]
[1729639636422,0.0437032,2628.0,2627.8,5.24889209]
[1729639636922,3.42426,2628.3,2627.8,5.24889209]
[1729639637229,3.42426,2628.3,2627.8,4.23662]
[1729639637428,0.04371832,2628.2,2627.8,4.23662]
[1729639637938,3.42426,2628.3,2627.8,4.23662]
[1729639638228,0.04371832,2628.2,2627.8,4.23662]
[1729639638582,0.04371832,2628.2,2627.8,0.8118]
[1729639638789,1.66961342,2628.2,2627.8,4.23669]
[1729639639093,0.04383862,2628.1,2627.8,4.23669]
[1729639639319,5.09387342,2628.3,2627.8,4.23669]
[1729639639481,0.04381727,2628.0,2627.8,4.23669]
[1729639639709,8.51824342,2628.3,2627.8,4.23669]
[1729639640180,0.0438324,2628.2,2627.8,4.23669]
[1729639640384,0.0438324,2628.2,2627.8,0.8118]
[1729639640385,3.42443,2628.2,2627.8,0.8118]
[1729639640639,0.04382484,2628.1,2627.8,0.8118]
[1729639643312,0.04382484,2628.1,2627.8,4.23671]
[1729639643516,0.04382484,2628.1,2627.8,0.8118]
[1729639643749,0.04382484,2628.1,2627.8,4.23669]
[1729639643945,0.04382484,2628.1,2627.8,5.16981634]
[1729639644453,3.4244,2628.2,2627.8,0.8118]
[1729639644653,0.04234936,2628.0,2627.8,0.8118]
[1729639644854,3.4244,2628.2,2627.8,0.8118]
[1729639645162,0.04234179,2627.9,2627.8,0.8118]
[1729639645318,3.4244,2628.2,2627.8,0.8118]
[1729639645517,0.04234179,2627.9,2627.8,0.8118]
[1729639645854,3.4244,2628.2,2627.8,0.8118]
[1729639646157,0.04235653,2627.9,2627.8,0.8118]
[1729639646356,3.4244,2628.2,2627.8,0.8118]
[1729639646563,0.04235653,2627.9,2627.8,0.8118]
[1729639646711,3.4244,2628.2,2627.8,5.24899109]
[1729639646919,0.04235653,2627.9,2627.8,4.23671]
[1729639647270,3.4244,2628.2,2627.8,0.8118]
[1729639647468,0.04235653,2627.9,2627.8,0.8118]
[1729639647768,3.4244,2628.2,2627.8,0.8118]
[1729639648359,0.04237166,2628.1,2627.8,4.23666]
[1729639648726,5.09388342,2628.3,2627.8,4.23666]
[1729639648927,0.04236409,2628.0,2627.8,4.23666]
[1729639649267,0.04235653,2627.9,2627.8,4.23666]
[1729639649427,5.09388342,2628.3,2627.8,4.23666]
[1729639649628,0.04235653,2627.9,2627.8,4.23666]
[1729639649967,3.42439,2628.2,2627.8,5.24894909]
[1729639650266,3.42439,2628.2,2627.8,4.23666]
[1729639650465,0.04237364,2628.1,2627.8,4.23666]
[1729639651423,0.04237364,2628.1,2627.8,0.8118]
[1729639658972,0.04237364,2628.1,2627.8,4.2367]
[1729639660484,0.04237364,2628.1,2627.8,0.8118]
[1729639661549,0.04237364,2628.1,2627.8,4.23668]
[1729639661751,0.04237364,2628.1,2627.8,0.8118]
[1729639664603,0.04237364,2628.1,2627.8,4.23668]
[1729639665746,3.42433,2628.3,2627.8,4.23668]
[1729639665862,0.0409712,2628.0,2627.8,4.23668]
[1729639666058,3.42433,2628.3,2627.8,4.23668]
[1729639666301,3.42422,2628.4,2627.8,4.23668]
[1729639666604,3.46538633,2628.2,2627.8,4.23668]
[1729639666988,0.04098633,2628.2,2627.8,4.23668]
[1729639667393,3.42428,2628.3,2627.8,4.23668]
[1729639667601,0.04097877,2628.1,2627.8,4.23668]
[1729639667915,0.0409712,2628.0,2627.8,4.23668]
[1729639668100,3.42428,2628.3,2627.8,4.23668]
[1729639668309,0.04096364,2627.9,2627.8,4.23668]
[1729639668504,3.42439,2628.2,2627.8,4.23668]
[1729639668803,0.04096364,2627.9,2627.8,4.23668]
[1729639669021,3.42422,2628.4,2627.8,5.24895109]
[1729639669226,0.04096364,2627.9,2627.8,4.23668]
[1729639669429,3.42439,2628.3,2627.8,0.8118]
[1729639669583,0.04096364,2627.9,2627.8,4.23668]
[1729639670093,3.42439,2628.3,2627.8,4.23668]
[1729639670510,6.84875,2628.3,2627.8,4.23668]
[1729639670682,0.04098633,2628.2,2627.8,4.23668]
[1729639670885,6.84875,2628.3,2627.8,4.23668]
[1729639671082,0.04097877,2628.1,2627.8,4.23668]
[1729639671279,6.84875,2628.3,2627.8,4.23668]
[1729639671483,0.0409712,2628.0,2627.8,4.23668]
[1729639671716,6.84875,2628.3,2627.8,5.24895109]
[1729639671882,6.84875,2628.3,2627.8,4.23668]
[1729639672085,0.04098633,2628.2,2627.8,4.23668]